bitfinex-derivatives/quotes_SOLF0:USTF0_20260118
["timestamp","ask_amount","ask_price","bid_price","bid_amount"]
[1768742022275,261.0506,142.23,142.16,0.04612643]
[1768742022575,5.2120723,142.22,142.16,0.04612643]
[1768742022773,5.2120723,142.21,142.16,0.04612643]
[1768742022975,5.2120723,142.2,142.16,0.04612643]
[1768742023179,5.2120723,142.19,142.16,0.04612643]
[1768742023380,261.0506,142.23,142.16,0.04612643]
[1768742024385,0.0497072,142.21,142.16,0.04612643]
[1768742026787,0.0497072,142.21,142.16,3.14638685]
[1768742093952,6.3305,142.24,142.16,3.14638685]
[1768742094949,6.3307,142.23,142.16,3.14638685]
[1768742095354,6.3307,142.23,142.16,3.10026042]
[1768742095854,6.3307,142.23,142.19,3.27765166]
[1768742103158,6.37697429,142.25,142.19,3.27765166]
[1768742116262,452.743,142.29,142.19,3.27765166]
[1768742116263,6.37607429,142.27,142.19,3.27765166]
[1768742117166,6.37607429,142.27,142.22,0.05072118]
[1768742117577,6.37607429,142.27,142.21,3.27765166]
[1768742117977,6.37607429,142.27,142.23,0.05171554]
[1768742122186,0.04707429,142.27,142.23,0.05171554]
[1768742126088,262.23493254,142.29,142.23,0.05171554]
[1768742127086,0.04683254,142.28,142.23,0.05171554]
[1768742137093,0.04683254,142.28,142.23,3.21064286]
[1768742137295,262.1881,142.29,142.23,3.21064286]
[1768742138387,262.2338487,142.29,142.23,3.21064286]
[1768742144098,255.86,142.29,142.23,3.21064286]
[1768742146792,255.9057487,142.29,142.23,3.21064286]
[1768742150899,0.0457487,142.28,142.23,3.21064286]
[1768742162514,6.3742487,142.28,142.23,3.21064286]
[1768742163814,6.3742487,142.28,142.23,0.05171554]
[1768742165417,6.3288,142.27,142.23,0.05171554]
[1768742172013,0.0457487,142.28,142.23,0.05171554]
[1768742181927,6.3741487,142.28,142.23,0.05171554]
[1768742184330,0.0448668,142.27,142.23,0.05171554]
[1768742186228,6.3737668,142.27,142.23,0.05171554]
[1768742194945,6.3289,142.27,142.23,0.05171554]
[1768742208358,6.37404065,142.27,142.23,0.05171554]
[1768742215767,0.04514065,142.27,142.23,0.05171554]
[1768742233571,6.3284,142.28,142.23,0.05171554]
[1768742233874,6.3284,142.28,142.23,3.12092389]
[1768742237070,0.04560081,142.29,142.23,3.12092389]
[1768742241273,262.7878,142.3,142.23,3.12092389]
[1768742241875,262.83340081,142.3,142.23,3.12092389]
[1768742256000,256.50560081,142.3,142.23,3.12092389]
[1768742256498,256.50560081,142.3,142.23,9.45142389]
[1768742256701,0.04452792,142.29,142.23,9.45142389]
[1768742260902,0.04452792,142.29,142.24,6.33]
[1768742265503,0.04452792,142.29,142.24,9.51794384]
[1768742280013,256.46,142.3,142.24,9.51794384]
[1768742287315,0.04542524,142.28,142.24,9.51794384]
[1768742310829,0.04542524,142.28,142.24,3.18794384]
[1768742319737,0.09304601,142.28,142.22,3.16707598]
[1768742320539,0.04542524,142.28,142.22,3.16707598]
[1768742320730,256.50762077,142.3,142.22,3.16707598]
[1768742321130,256.50762077,142.3,142.24,0.04880864]
[1768742324642,0.04762077,142.29,142.24,0.04880864]
[1768742326538,6.3289,142.27,142.24,0.04880864]
[1768742326730,98.4699,142.24,142.15,3.16707598]
[1768742326937,256.9,142.23,142.15,3.16707598]
[1768742327341,5.3200419,142.22,142.15,3.16707598]
[1768742327542,5.3200419,142.21,142.15,3.16707598]
[1768742327739,5.3200419,142.2,142.15,3.16707598]
[1768742327934,3.2059744,142.23,142.17,3.21554764]
[1768742328244,123.1059744,142.23,142.17,3.21554764]
[1768742328443,123.1059744,142.23,142.17,3.16707598]
[1768742330049,123.1059744,142.23,142.19,0.047959]
[1768742330246,123.1059744,142.23,142.17,3.16707598]
[1768742330446,0.04566628,142.21,142.17,3.16707598]
[1768742331246,0.04566628,142.21,142.09,147.52470666]
[1768742331749,3.2059744,142.21,142.09,147.52470666]
[1768742332942,3.2059744,142.21,142.14,0.04690462]
[1768742333143,3.2059744,142.21,142.14,3.21893077]
[1768742334452,9.5375744,142.21,142.14,3.21893077]
[1768742336048,3.2059744,142.21,142.14,3.21893077]
[1768742339054,0.04685504,142.19,142.14,3.21893077]
[1768742365975,6.3309,142.23,142.14,3.21893077]
[1768742366178,210.42647687,142.24,142.14,3.21893077]
[1768742366368,210.42647687,142.24,142.14,3.17202615]
[1768742366771,216.75667687,142.24,142.14,3.17202615]
[1768742367476,216.75667687,142.24,142.18,3.07277813]
[1768742367877,6.3306,142.23,142.18,3.07277813]
[1768742370581,5.30842646,142.22,142.18,3.07277813]
[1768742370781,6.3306,142.23,142.18,3.07277813]
[1768742370983,5.30842646,142.22,142.18,3.07277813]
[1768742371174,6.3306,142.23,142.18,3.07277813]
[1768742371375,5.31367702,142.22,142.18,3.07277813]
[1768742371681,6.3306,142.23,142.18,3.07277813]
[1768742371977,5.31367702,142.22,142.18,3.07277813]
[1768742372283,6.3306,142.23,142.18,3.07277813]
[1768742372487,5.31305989,142.22,142.18,3.07277813]
[1768742372780,6.3306,142.23,142.18,3.07277813]
[1768742372983,5.31305989,142.22,142.18,3.07277813]
[1768742373185,6.3306,142.23,142.18,3.07277813]
[1768742373378,5.31305989,142.22,142.18,3.07277813]
[1768742373577,6.3306,142.23,142.18,3.07277813]
[1768742373782,5.31247764,142.22,142.18,3.07277813]
[1768742373977,6.3306,142.23,142.18,3.07277813]
[1768742374177,5.31247764,142.22,142.18,3.07277813]
[1768742374378,6.3306,142.23,142.18,3.07277813]
[1768742374576,5.31187571,142.22,142.18,3.07277813]
[1768742374775,9.50615402,142.23,142.18,3.07277813]
[1768742374976,5.31158329,142.22,142.18,3.07277813]
[1768742375176,9.50615402,142.23,142.18,3.07277813]
[1768742375377,5.31158329,142.22,142.18,3.07277813]
[1768742375580,9.50615402,142.23,142.18,3.07277813]
[1768742375782,5.31123026,142.22,142.18,3.07277813]
[1768742375974,9.50615402,142.23,142.18,3.07277813]
[1768742376174,5.3112303,142.22,142.18,3.07277813]
[1768742376379,9.50615402,142.23,142.18,3.07277813]
[1768742376580,5.31086417,142.22,142.18,3.07277813]
[1768742376780,9.50615402,142.23,142.18,3.07277813]
[1768742376980,5.31086417,142.22,142.18,3.07277813]
[1768742377177,9.50615402,142.23,142.18,3.07277813]
[1768742377377,5.31072985,142.22,142.18,3.07277813]
[1768742377579,9.50615402,142.23,142.18,3.07277813]
[1768742377782,5.31057302,142.22,142.18,3.07277813]
[1768742377981,9.50615402,142.23,142.18,3.07277813]
[1768742378178,14.92463236,142.22,142.16,3.06274932]
[1768742378377,5.31057302,142.21,142.16,3.06274932]
[1768742378580,9.61405934,142.22,142.16,3.06274932]
[1768742378783,5.3101557,142.21,142.16,3.06274932]
[1768742378977,3.28285934,142.19,142.11,3.06274932]
[1768742379581,0.04768733,142.16,142.14,0.0531242]
[1768742379784,3.28285934,142.19,142.14,0.0531242]
[1768742380986,9.61535934,142.19,142.14,0.0531242]
[1768742381984,3.28285934,142.19,142.14,0.0531242]
[1768742383787,8.59246476,142.18,142.14,0.0531242]
[1768742383985,3.28285934,142.18,142.14,0.0531242]
[1768742384181,3.28285934,142.18,142.11,3.06274932]
[1768742384492,3.28285934,142.18,142.15,0.04491912]
[1768742385092,3.28285934,142.18,142.11,3.06274932]
[1768742385592,5.30832628,142.17,142.11,3.06274932]
[1768742385795,3.28285934,142.18,142.11,3.06274932]
[1768742386486,3.28285934,142.18,142.13,0.04544673]
[1768742387895,9.61575934,142.18,142.13,0.04544673]
[1768742388895,3.28285934,142.15,142.06,3.06274932]
[1768742398103,0.04782849,142.12,142.09,0.05186596]
[1768742398305,0.0203419,142.15,142.09,3.37597207]
[1768742406017,0.05049619,142.13,142.09,3.37597207]
[1768742411417,3.2472653,142.22,142.1,3.32410611]
[1768742412717,3.2472653,142.22,142.15,3.37344405]
[1768742413109,3.2472653,142.22,142.15,3.32410611]
[1768742414125,3.2472653,142.22,142.17,0.05362189]
[1768742417020,3.2472653,142.22,142.15,3.32410611]
[1768742417321,5.37663396,142.21,142.15,3.32410611]
[1768742417620,3.2929434,142.21,142.15,3.32410611]
[1768742419325,3.2929434,142.21,142.13,3.32410611]
[1768742419514,3.2472653,142.19,142.13,3.32410611]
[1768742421017,0.04919215,142.17,142.15,0.04562034]
[1768742424726,3.2472653,142.21,142.15,0.04562034]
[1768742424727,210.53142371,142.24,142.16,3.17852837]
[1768742425022,5.33765283,142.23,142.16,3.17852837]
[1768742425214,5.33765283,142.22,142.16,3.17852837]
[1768742425413,3.28050086,142.23,142.16,3.17852837]
[1768742425617,5.33703324,142.22,142.16,3.17852837]
[1768742425926,3.28050086,142.23,142.16,3.17852837]
[1768742426114,5.33703324,142.22,142.18,0.04426842]
[1768742426315,207.25092285,142.24,142.18,3.22279679]
[1768742427021,5.33678325,142.23,142.18,3.22279679]
[1768742427222,210.53142371,142.24,142.18,3.22279679]
[1768742431031,3.28050086,142.22,142.15,3.17852837]
[1768742432324,0.05211369,142.2,142.15,3.17852837]
[1768742442238,0.05211369,142.2,142.16,0.05224046]
[1768742442935,3.38404005,142.2,142.04,21.12]
[1768742443236,3.38404005,142.2,142.05,7.033]
[1768742443438,3.33192636,142.2,142.05,7.033]
[1768742445041,3.33192636,142.2,142.07,3.22631802]
[1768742445638,0.04827143,142.15,142.07,3.22631802]
[1768742470961,3.06720204,142.18,142.11,3.30397314]
[1768742477860,0.04906317,142.16,142.13,0.05274925]
[1768742478267,3.11626521,142.16,142.13,0.05274925]
[1768742481466,3.11626521,142.16,142.09,3.30397314]
[1768742486377,8.40579463,142.15,142.09,3.30397314]
[1768742486572,3.06210645,142.15,142.09,3.30397314]
[1768742491175,3.06210645,142.15,142.03,20.21551975]
[1768742491176,3.06210645,142.15,142.04,3.16375522]
[1768742491369,3.11116962,142.16,142.04,3.16375522]
[1768742491575,8.40249523,142.15,142.04,3.16375522]
[1768742491871,3.06210645,142.15,142.04,3.16375522]
[1768742492073,0.04727304,142.11,142.04,3.16375522]
[1768742492376,3.06210645,142.15,142.08,0.05341473]
[1768742492783,3.06210645,142.15,142.09,3.16375522]
[1768742493679,0.04692754,142.13,142.09,3.16375522]
[1768742495682,3.10903399,142.13,142.08,0.05341473]
[1768742496383,3.10903399,142.13,142.08,3.26197362]
[1768742499784,3.10903399,142.13,142.08,0.05341473]
[1768742509388,3.10903399,142.13,142.08,3.26197362]
[1768742510392,3.10903399,142.13,142.08,0.05341473]
[1768742518296,3.10903399,142.13,142.04,3.27657621]
[1768742518902,3.06210645,142.13,142.04,3.27657621]
[1768742519798,0.048909,142.1,142.04,3.27657621]
[1768742538411,3.13718859,142.14,142.07,3.27657621]
[1768742540101,0.05141991,142.12,142.09,0.04980344]
[1768742546718,3.13718859,142.14,142.09,0.04980344]
[1768742547023,5.32771441,142.13,142.09,0.04980344]
[1768742547315,3.13718859,142.14,142.09,0.04980344]
[1768742547516,3.18745521,142.12,142.09,0.04980344]
[1768742547919,3.18745521,142.12,142.06,3.00828885]
[1768742548317,3.18745521,142.12,142.09,0.04801937]
[1768742550618,3.23367863,142.12,142.09,0.04801937]
[1768742553227,8.50141428,142.11,142.04,3.00828885]
[1768742553427,3.18745521,142.11,142.04,3.00828885]
[1768742556328,0.04780886,142.09,142.06,0.04765234]
[1768742556519,3.18745521,142.11,142.06,0.04765234]
[1768742565533,3.18745521,142.11,142.06,3.31967683]
[1768742565834,3.3402233,142.17,142.06,3.31967683]
[1768742566033,6.3331,142.18,142.06,3.31967683]
[1768742566034,3.3402233,142.15,142.06,3.31967683]
[1768742566227,3.3402233,142.13,142.06,3.27202449]
[1768742566432,5.31489248,142.12,142.06,3.27202449]
[1768742566728,3.3402233,142.13,142.09,0.04652198]
[1768742566927,5.31485436,142.12,142.09,0.04652198]
[1768742567123,3.3402233,142.13,142.09,0.04652198]
[1768742567322,5.31504475,142.12,142.09,0.04652198]
[1768742567633,3.3402233,142.13,142.09,0.04652198]
[1768742567834,5.31506387,142.12,142.09,0.04652198]
[1768742568036,3.3402233,142.13,142.09,0.04652198]
[1768742568223,5.31494494,142.12,142.09,0.04652198]
[1768742568426,3.3402233,142.13,142.09,0.04652198]
[1768742568636,5.31494494,142.12,142.09,0.04652198]
[1768742568835,3.3402233,142.13,142.09,0.04652198]
[1768742569135,5.31494494,142.12,142.09,0.04652198]
[1768742569434,3.3402233,142.13,142.09,0.04652198]
[1768742569630,5.31495822,142.12,142.09,0.04652198]
[1768742569826,3.3402233,142.13,142.09,0.04652198]
[1768742570022,5.31495822,142.12,142.09,0.04652198]
[1768742570221,3.3402233,142.13,142.09,0.04652198]
[1768742570430,5.31491695,142.12,142.09,0.04652198]
[1768742570630,3.3402233,142.13,142.09,0.04652198]
[1768742570823,5.31491695,142.12,142.09,0.04652198]
[1768742571022,3.3402233,142.13,142.09,0.04652198]
[1768742571228,5.31487891,142.12,142.09,0.04652198]
[1768742571534,3.3402233,142.13,142.09,0.04652198]
[1768742571726,5.3148337,142.12,142.09,0.04652198]
[1768742571928,3.3402233,142.13,142.09,0.04652198]
[1768742572132,5.31489861,142.12,142.09,0.04652198]
[1768742572431,3.3402233,142.13,142.09,0.04652198]
[1768742572633,5.3626057,142.12,142.09,0.04652198]
[1768742572931,0.04774022,142.12,142.09,0.04652198]
[1768742578136,3.20169962,142.12,142.09,0.04652198]
[1768742591447,3.1539594,142.14,142.09,0.04652198]
[1768742591943,3.1539594,142.14,142.08,3.10530581]
[1768742592945,3.1539594,142.14,142.1,0.05392845]
[1768742593746,3.1539594,142.14,142.1,6.39002845]
[1768742595240,0.05177493,142.13,142.1,6.39002845]
[1768742600654,0.05177493,142.13,142.11,6.3358]
[1768742601646,3.1539594,142.14,142.11,6.3358]
[1768742607156,3.17479711,142.18,142.11,6.3358]
[1768742607354,3.17479711,142.16,142.11,6.3358]
[1768742607852,3.17479711,142.16,142.12,0.0476678]
[1768742608959,3.17479711,142.18,142.12,9.48729369]
[1768742609158,5.30581544,142.17,142.12,9.48729369]
[1768742609356,0.04727224,142.15,142.12,9.43962589]
[1768742609757,0.04727224,142.15,142.13,0.0497965]
[1768742610260,3.17479711,142.18,142.13,0.0497965]
[1768742613366,3.17479711,142.18,142.13,6.3846965]
[1768742619068,8.47756325,142.17,142.13,6.3846965]
[1768742619263,3.18172437,142.17,142.13,6.3846965]
[1768742619864,3.18172437,142.17,142.13,0.0497965]
[1768742624171,8.47869997,142.16,142.13,0.0497965]
[1768742624467,3.18172437,142.16,142.11,9.43982589]
[1768742625869,3.18172437,142.16,142.12,0.04927667]
[1768742635182,5.30508413,142.15,142.12,0.04927667]
[1768742635389,3.18172437,142.16,142.12,0.04927667]
[1768742635579,5.30502764,142.15,142.12,0.04927667]
[1768742635780,3.18172437,142.16,142.12,0.04927667]
[1768742635975,5.30500799,142.15,142.12,0.04927667]
[1768742636181,3.18172437,142.16,142.12,0.04927667]
[1768742636377,3.03955941,142.14,142.12,0.04927667]
[1768742636581,6.3325,142.19,142.12,0.04927667]
[1768742636790,5.30681202,142.18,142.12,0.04927667]
[1768742636978,5.30681202,142.17,142.12,0.04927667]
[1768742637183,5.30681202,142.16,142.12,0.04927667]
[1768742637476,5.30681202,142.15,142.12,0.04927667]
[1768742637680,6.3325,142.19,142.12,0.04927667]
[1768742637886,5.3064522,142.18,142.12,0.04927667]
[1768742638088,5.3064522,142.17,142.12,0.04927667]
[1768742638286,5.3064522,142.16,142.12,0.04927667]
[1768742638486,5.3064522,142.15,142.12,0.04927667]
[1768742638690,3.03955941,142.16,142.12,0.04927667]
[1768742638888,5.30642287,142.15,142.12,0.04927667]
[1768742639090,3.03955941,142.16,142.12,0.04927667]
[1768742639292,5.31045762,142.15,142.12,0.04927667]
[1768742639494,3.03955941,142.16,142.12,0.04927667]
[1768742639790,5.31045762,142.15,142.12,0.04927667]
[1768742639992,3.03955941,142.16,142.12,0.04927667]
[1768742640185,5.31041592,142.15,142.12,0.04927667]
[1768742640386,5.31041592,142.14,142.12,0.04927667]
[1768742640593,3.03955941,142.16,142.12,0.04927667]
[1768742640793,5.31075593,142.15,142.12,0.04927667]
[1768742640993,3.03955941,142.16,142.12,0.04927667]
[1768742641294,5.31075593,142.15,142.12,0.04927667]
[1768742641486,3.03955941,142.16,142.12,0.04927667]
[1768742641687,5.31067231,142.15,142.12,0.04927667]
[1768742641986,3.03955941,142.16,142.12,0.04927667]
[1768742642186,5.31067231,142.15,142.12,0.04927667]
[1768742642394,3.03955941,142.16,142.12,0.04927667]
[1768742642595,5.31059049,142.15,142.12,0.04927667]
[1768742642794,3.03955941,142.16,142.12,0.04927667]
[1768742642994,5.31098413,142.15,142.12,0.04927667]
[1768742643196,3.03955941,142.16,142.12,0.04927667]
[1768742643393,5.31087856,142.15,142.12,0.04927667]
[1768742643694,3.03955941,142.16,142.12,0.04927667]
[1768742644000,5.31087856,142.15,142.12,0.04927667]
[1768742644199,5.31081464,142.14,142.12,0.04927667]
[1768742644391,3.03955941,142.16,142.12,0.04927667]
[1768742644592,5.31072352,142.15,142.12,0.04927667]
[1768742644793,5.31072352,142.14,142.12,0.04927667]
[1768742644998,3.03955941,142.16,142.12,0.04927667]
[1768742645305,5.31072352,142.15,142.12,0.04927667]
[1768742645491,5.31072352,142.14,142.12,0.04927667]
[1768742645795,3.03955941,142.16,142.12,0.04927667]
[1768742646000,5.31059046,142.15,142.12,0.04927667]
[1768742646196,5.31059046,142.14,142.12,0.04927667]
[1768742646393,3.03955941,142.16,142.12,0.04927667]
[1768742646593,5.31048676,142.15,142.12,0.04927667]
[1768742646793,5.31048676,142.14,142.12,0.04927667]
[1768742646999,3.03955941,142.16,142.12,0.04927667]
[1768742647296,5.31043371,142.15,142.12,0.04927667]
[1768742647498,5.31043371,142.14,142.12,0.04927667]
[1768742647697,3.03955941,142.16,142.12,0.04927667]
[1768742647898,5.31036705,142.15,142.12,0.04927667]
[1768742648199,3.03955941,142.16,142.12,0.04927667]
[1768742648400,5.31025087,142.15,142.12,0.04927667]
[1768742648698,3.03955941,142.16,142.12,0.04927667]
[1768742648893,5.31025087,142.15,142.12,0.04927667]
[1768742649093,3.03955941,142.16,142.12,0.04927667]
[1768742649288,5.31019019,142.15,142.12,0.04927667]
[1768742649487,3.03955941,142.16,142.12,0.04927667]
[1768742649700,5.31042015,142.15,142.12,0.04927667]
[1768742649999,3.03955941,142.16,142.12,0.04927667]
[1768742650202,5.3103559,142.15,142.12,0.04927667]
[1768742650494,3.03955941,142.16,142.12,0.04927667]
[1768742651002,3.03955941,142.2,142.12,3.35047411]
[1768742651202,8.35094156,142.19,142.12,3.35047411]
[1768742651402,5.31138215,142.18,142.12,3.30119744]
[1768742651590,3.03955941,142.19,142.12,3.30119744]
[1768742651797,5.3109564,142.18,142.14,0.0465372]
[1768742651995,3.03955941,142.19,142.14,0.0465372]
[1768742652196,5.3109564,142.18,142.14,0.0465372]
[1768742652396,3.03955941,142.19,142.14,0.0465372]
[1768742652697,5.31029478,142.18,142.14,0.0465372]
[1768742652898,3.03955941,142.19,142.14,0.0465372]
[1768742653094,5.31027854,142.18,142.14,0.0465372]
[1768742653296,3.03955941,142.19,142.14,0.0465372]
[1768742653497,5.30969031,142.18,142.14,0.0465372]
[1768742653792,3.03955941,142.19,142.14,0.0465372]
[1768742653995,5.30969031,142.18,142.14,0.0465372]
[1768742654196,0.04448404,142.18,142.14,0.0465372]
[1768742654607,0.04448404,142.18,142.14,6.3810372]
[1768742655106,3.08404345,142.18,142.14,6.3810372]
[1768742658110,0.04448404,142.18,142.14,6.3810372]
[1768742660604,3.03955941,142.22,142.15,9.63509744]
[1768742660804,5.30637121,142.21,142.15,9.63509744]
[1768742660999,5.30637121,142.2,142.15,9.63509744]
[1768742661202,3.03955941,142.22,142.15,9.63509744]
[1768742661405,8.3452249,142.21,142.15,9.63509744]
[1768742661599,5.30566549,142.2,142.15,9.63509744]
[1768742661803,3.03955941,142.21,142.15,9.63509744]
[1768742662010,5.30566549,142.2,142.17,0.04576852]
[1768742662210,3.03955941,142.21,142.17,0.04576852]
[1768742662507,5.30500839,142.2,142.17,0.04576852]
[1768742662712,3.03955941,142.21,142.17,0.04576852]
[1768742662912,5.30499278,142.2,142.17,0.04576852]
[1768742663108,3.03955941,142.21,142.17,0.04576852]
[1768742663308,5.30482079,142.2,142.17,0.04576852]
[1768742663509,3.03955941,142.21,142.17,0.04576852]
[1768742663711,8.61626465,142.2,142.17,0.04576852]
[1768742664009,3.31191487,142.2,142.17,0.04576852]
[1768742667211,3.31191487,142.22,142.17,0.04576852]
[1768742667517,5.30239588,142.21,142.17,0.04576852]
[1768742667718,5.30239588,142.2,142.17,0.04576852]
[1768742667917,5.30239588,142.2,142.15,3.30119744]
[1768742669310,5.30239588,142.2,142.16,0.04522945]
[1768742669511,8.61431075,142.2,142.16,0.04522945]
[1768742669716,3.31191487,142.2,142.16,0.04522945]
[1768742680929,3.31191487,142.2,142.16,6.37882945]
[1768742682232,3.16676273,142.18,142.16,6.32958152]
[1768742682530,3.16676273,142.18,142.14,6.3342]
[1768742683722,3.16676273,142.18,142.15,0.04924295]
[1768742683923,3.16676273,142.18,142.15,6.38324295]
[1768742693346,5.29961819,142.17,142.15,6.38324295]
[1768742693545,3.16676273,142.18,142.15,6.38324295]
[1768742693745,5.29961819,142.17,142.15,6.38324295]
[1768742693944,3.16676273,142.18,142.15,0.04924295]
[1768742694145,5.29961819,142.17,142.15,0.04924295]
[1768742694444,3.16676273,142.18,142.15,0.04924295]
[1768742694644,5.30141905,142.17,142.15,0.04924295]
[1768742694846,3.16676273,142.18,142.15,0.04924295]
[1768742695047,5.30141905,142.17,142.15,0.04924295]
[1768742695244,3.16676273,142.18,142.15,0.04924295]
[1768742695444,5.30311288,142.17,142.15,0.04924295]
[1768742695645,3.16676273,142.18,142.15,0.04924295]
[1768742695846,5.30311288,142.17,142.15,0.04924295]
[1768742696139,3.16676273,142.18,142.15,0.04924295]
[1768742696341,5.30313252,142.17,142.15,0.04924295]
[1768742696541,3.16676273,142.18,142.15,0.04924295]
[1768742696745,5.30312777,142.17,142.15,0.04924295]
[1768742697048,3.16676273,142.18,142.15,0.04924295]
[1768742697244,5.30312777,142.17,142.15,0.04924295]
[1768742697446,3.16676273,142.18,142.15,0.04924295]
[1768742697647,5.30303347,142.17,142.15,0.04924295]
[1768742697944,3.16676273,142.18,142.15,0.04924295]
[1768742698146,5.30303347,142.17,142.15,0.04924295]
[1768742698345,3.16676273,142.18,142.15,0.04924295]
[1768742698545,5.30294152,142.17,142.15,0.04924295]
[1768742698845,3.16676273,142.18,142.15,0.04924295]
[1768742699046,5.30294152,142.17,142.15,0.04924295]
[1768742699341,3.16676273,142.18,142.15,0.04924295]
[1768742699646,5.29927751,142.17,142.15,0.04924295]
[1768742699846,3.16676273,142.18,142.15,0.04924295]
[1768742700051,5.29927751,142.17,142.15,0.04924295]
[1768742700239,3.16676273,142.18,142.15,0.04924295]
[1768742700442,5.29922427,142.17,142.15,0.04924295]
[1768742700752,3.16676273,142.18,142.15,0.04924295]
[1768742700943,5.29922427,142.17,142.15,0.04924295]
[1768742701147,3.16676273,142.18,142.15,0.04924295]
[1768742701347,5.29913538,142.17,142.15,0.04924295]
[1768742701547,3.16676273,142.18,142.15,0.04924295]
[1768742701749,5.29913538,142.17,142.15,0.04924295]
[1768742701953,3.16676273,142.18,142.15,0.04924295]
[1768742702250,5.29913538,142.17,142.15,0.04924295]
[1768742702446,3.16676273,142.18,142.15,0.04924295]
[1768742702656,5.29904912,142.17,142.15,0.04924295]
[1768742702847,3.16676273,142.18,142.15,0.04924295]
[1768742703044,5.29877116,142.17,142.15,0.04924295]
[1768742703249,5.29877116,142.17,142.1,3.15036298]
[1768742703250,5.29822385,142.16,142.1,3.15036298]
[1768742703452,3.11991528,142.17,142.1,3.15036298]
[1768742703753,5.29818577,142.16,142.1,3.15036298]
[1768742703949,3.11991528,142.17,142.1,3.15036298]
[1768742704149,5.29818577,142.16,142.1,3.15036298]
[1768742704355,3.11991528,142.17,142.1,3.15036298]
[1768742704651,5.29771758,142.16,142.12,0.05250564]
[1768742704853,3.11991528,142.17,142.12,3.20286862]
[1768742705053,5.29771758,142.16,142.12,3.20286862]
[1768742705253,3.11991528,142.17,142.12,3.20286862]
[1768742705455,5.29731748,142.16,142.12,3.20286862]
[1768742705651,3.11991528,142.17,142.12,3.20286862]
[1768742705854,5.29731748,142.16,142.12,3.20286862]
[1768742706054,3.11991528,142.17,142.12,3.20286862]
[1768742706253,5.34605268,142.16,142.12,3.20286862]
[1768742706457,0.04873519,142.16,142.12,3.20286862]
[1768742706760,3.16865047,142.16,142.12,0.05250564]
[1768742719663,8.41433091,142.15,142.12,0.05250564]
[1768742719867,3.11991528,142.15,142.08,3.15036298]
[1768742721165,3.16778301,142.13,142.1,0.04848494]
[1768742721668,3.11991528,142.13,142.03,3.15036298]
[1768742729775,3.27579107,142.12,142.03,3.15036298]
[1768742746184,3.33452513,142.11,142.0,8.964e-05]
[1768742746376,3.33452513,142.09,142.0,8.964e-05]
[1768742749286,3.33452513,142.08,142.0,8.964e-05]
[1768742765300,0.04721778,142.05,142.0,8.964e-05]
[1768742765600,0.04721778,142.05,142.03,0.05373132]
[1768742771993,0.04721778,142.05,142.03,3.09232664]
[1768742772200,3.33452513,142.08,142.03,3.09232664]
[1768742773308,3.33902433,142.12,142.03,3.09232664]
[1768742773508,6.3353,142.13,142.03,3.09232664]
[1768742773509,3.33902433,142.11,142.03,3.09232664]
[1768742773808,3.33902433,142.11,142.03,3.03859532]
[1768742774003,3.33902433,142.11,142.06,0.04581239]
[1768742774699,3.33902433,142.11,142.02,3.03859532]
[1768742783313,3.30153486,142.09,142.02,3.03859532]
[1768742786422,3.30153486,142.09,142.04,0.047459]
[1768742789510,9.63753486,142.11,142.04,3.06518384]
[1768742789720,8.5838135,142.1,142.04,3.06518384]
[1768742789907,3.30153486,142.1,142.04,3.06518384]
[1768742795523,0.04951102,142.08,142.04,3.06518384]
[1768742803431,3.12797501,142.08,142.04,0.047459]
[1768742806738,0.04951102,142.08,142.05,3.0602874]
[1768742814539,0.04951102,142.08,142.04,0.047459]
[1768742820458,0.04951102,142.08,142.04,3.17317273]
[1768742867791,0.04951102,142.08,142.04,9.51207273]
[1768742874488,5.29337665,142.07,142.04,9.51207273]
[1768742874690,0.04951102,142.08,142.04,9.51207273]
[1768742874889,5.29337665,142.07,142.04,9.51207273]
[1768742875086,0.04951102,142.08,142.04,9.51207273]
[1768742875285,5.29340933,142.07,142.04,9.51207273]
[1768742875486,0.04951102,142.08,142.04,9.51207273]
[1768742875694,5.29340933,142.07,142.04,9.51207273]
[1768742875893,0.04951102,142.08,142.04,9.51207273]
[1768742877698,0.04951102,142.08,142.05,3.05310735]
[1768742877898,3.17017461,142.1,142.05,3.05310735]
[1768742878099,5.29362276,142.09,142.05,3.05310735]
[1768742878397,5.29362276,142.08,142.05,3.05310735]
[1768742878596,3.17017461,142.1,142.05,3.05310735]
[1768742878792,5.29374737,142.09,142.05,3.05310735]
[1768742878997,5.29374737,142.08,142.05,3.05310735]
[1768742879198,3.17017461,142.1,142.05,3.05310735]
[1768742879398,5.29389567,142.09,142.05,3.05310735]
[1768742879697,5.29389567,142.08,142.05,3.05310735]
[1768742879893,3.17017461,142.1,142.05,3.05310735]
[1768742880086,5.29649062,142.09,142.05,3.05310735]
[1768742880289,5.29649062,142.08,142.05,3.05310735]
[1768742880592,3.17017461,142.1,142.05,3.05310735]
[1768742880789,5.29662995,142.09,142.05,3.05310735]
[1768742881093,5.29662995,142.08,142.05,9.39160735]
[1768742881294,3.17017461,142.1,142.05,9.39160735]
[1768742881499,5.29692588,142.09,142.05,9.39160735]
[1768742881691,5.29692588,142.08,142.05,9.39160735]
[1768742881903,3.17017461,142.1,142.05,9.39160735]